bitfinex-derivatives/quotes_BNBF0:USTF0_20250521
["timestamp","ask_amount","ask_price","bid_price","bid_amount"]
[1747825336034,3.82008945,654.26,652.85,1.23006969]
[1747825336235,3.82008945,654.26,652.86,0.92396881]
[1747825336539,3.82008945,654.26,652.87,0.92396881]
[1747825336736,3.82008945,654.26,652.88,0.92396881]
[1747825336934,3.82008945,654.26,652.89,0.92396881]
[1747825337136,3.82008945,654.26,652.9,2.09064477]
[1747825337337,3.82008945,654.26,652.91,0.92396881]
[1747825337539,3.82008945,654.26,652.92,0.92396495]
[1747825337736,3.82008945,654.26,652.93,2.09064091]
[1747825337937,0.776,654.25,652.94,0.6178539]
[1747825338141,0.776,654.25,652.95,1.16667596]
[1747825338341,0.776,654.25,652.96,0.6178539]
[1747825338543,0.776,654.25,652.96,0.92395478]
[1747825338745,0.776,654.25,652.97,0.6178539]
[1747825338945,0.2663014,654.24,652.97,0.6178539]
[1747825339245,0.2663014,654.24,652.98,0.6178643]
[1747825339446,0.2663014,654.24,652.99,0.6178643]
[1747825339746,0.2663014,654.24,653.0,0.92396518]
[1747825339946,0.2663014,654.24,653.01,0.6178643]
[1747825340246,0.2663014,654.24,653.0,0.30610088]
[1747825340443,0.2663014,654.24,653.01,0.61786603]
[1747825340644,0.2663014,654.24,653.0,0.30610088]
[1747825340945,0.2663014,654.24,653.02,0.30610088]
[1747825341551,0.776,654.25,653.02,0.30610088]
[1747825341950,0.26631566,654.23,653.02,0.30610088]
[1747825342351,0.26631566,654.23,652.83,0.30610088]
[1747825342544,0.26631566,654.23,652.84,0.92402469]
[1747825342849,0.26631566,654.23,652.85,2.09081093]
[1747825343050,0.26631566,654.23,652.86,0.92402469]
[1747825343251,0.26631566,654.23,652.87,0.92402469]
[1747825343447,0.26631566,654.23,652.88,0.92402469]
[1747825343752,0.26631566,654.23,652.89,2.09081093]
[1747825344052,0.26631566,654.23,652.9,0.92402469]
[1747825344252,0.26631566,654.23,652.91,2.09081093]
[1747825344449,0.26631566,654.23,652.92,0.92402469]
[1747825344649,0.776,654.25,652.93,0.92402767]
[1747825344852,0.26630649,654.22,652.94,2.09081391]
[1747825345050,0.26630649,654.22,652.95,0.61791569]
[1747825345248,0.26630649,654.22,652.96,0.30610088]
[1747825345450,0.26630649,654.22,652.97,0.61791569]
[1747825346253,0.26630649,654.22,652.96,0.30610088]
[1747825346455,0.26630649,654.22,652.97,0.61839759]
[1747825346955,0.26630649,654.22,652.98,0.30610088]
[1747825347154,0.26630649,654.22,652.99,0.61839759]
[1747825347556,0.776,654.25,652.99,0.61839759]
[1747825347750,0.26630038,654.21,652.99,0.61839759]
[1747825348155,0.26630038,654.21,653.0,0.30610088]
[1747825350352,0.26630038,654.21,652.82,0.30610088]
[1747825350549,3.82008945,654.08,652.83,2.0913854]
[1747825350753,3.82008945,654.08,652.84,0.92441513]
[1747825350952,3.82008945,654.08,652.85,0.92441513]
[1747825351149,3.82008945,654.08,652.86,0.92441513]
[1747825351353,3.82008945,654.08,652.87,0.92441513]
[1747825351650,3.82008945,654.08,652.88,0.92441468]
[1747825351952,0.26632993,654.07,652.89,0.92441468]
[1747825352150,0.26632993,654.07,652.9,2.09138495]
[1747825352352,0.26632993,654.07,652.91,0.92441468]
[1747825352554,0.26632993,654.07,652.92,1.785262]
[1747825352854,0.26632993,654.07,652.93,0.61829173]
[1747825353054,0.26632993,654.07,652.94,0.61829173]
[1747825353255,0.26632993,654.07,652.95,0.61829173]
[1747825353457,0.26632993,654.07,652.96,0.61823315]
[1747825353657,3.82008945,654.08,652.97,0.61823315]
[1747825353957,3.82008945,654.08,652.98,0.61823315]
[1747825354156,3.82008945,654.08,652.99,0.61823315]
[1747825354357,3.82008945,654.08,652.96,0.30610088]
[1747825354559,3.82008945,654.08,652.97,0.61812024]
[1747825354859,0.26633706,654.07,652.98,0.61812024]
[1747825355052,0.26633706,654.07,652.99,0.92422112]
[1747825355256,0.26633706,654.07,652.99,0.30610088]
[1747825356857,0.26633706,654.07,652.81,0.60807815]
[1747825357052,0.26633706,654.07,652.82,0.92421912]
[1747825357256,0.26633706,654.07,652.83,2.09063021]
[1747825357452,0.26633706,654.07,652.84,0.92421912]
[1747825357654,0.26633706,654.07,652.85,0.92421912]
[1747825357854,0.26633706,654.07,652.86,2.09063021]
[1747825358057,0.26633706,654.07,652.87,1.23032]
[1747825358258,0.26633706,654.07,652.88,0.92421912]
[1747825358561,0.26633706,654.07,652.89,0.92421981]
[1747825358754,0.26633706,654.07,652.9,2.0906311]
[1747825358957,0.26633706,654.07,652.91,0.61809634]
[1747825359158,0.26633706,654.07,652.92,0.61809634]
[1747825359454,0.26633706,654.07,652.93,0.61809634]
[1747825359657,3.82008945,654.08,652.94,0.61809634]
[1747825359859,3.82008945,654.08,652.92,0.30610088]
[1747825360059,3.82008945,654.08,652.93,0.61815986]
[1747825360257,3.82008945,654.08,652.92,0.30610088]
[1747825360456,3.82008945,654.08,652.93,0.61809007]
[1747825360657,3.82008945,654.08,652.92,0.30610088]
[1747825360863,0.26635031,654.07,652.92,0.30610088]
[1747825361064,0.26635031,654.07,652.93,0.61809562]
[1747825361362,0.26635031,654.07,652.76,0.30610088]
[1747825361564,0.26635031,654.07,652.77,0.92419092]
[1747825361764,0.26635031,654.07,652.78,0.92419092]
[1747825361965,0.26635031,654.07,652.79,2.09056204]
[1747825362166,0.26635031,654.07,652.8,0.92410185]
[1747825362364,0.26635031,654.07,652.81,0.92410185]
[1747825362565,3.82008945,654.08,652.82,2.09047297]
[1747825362765,3.82008945,654.08,652.83,0.6179527]
[1747825362966,3.82008945,654.08,652.84,0.6179527]
[1747825363162,3.82008945,654.08,652.85,0.6179527]
[1747825363359,3.82008945,654.08,652.81,0.30610088]
[1747825363562,3.82008945,654.08,652.82,0.61776238]
[1747825363761,3.82008945,654.08,652.72,0.30197727]
[1747825363762,0.2663758,654.07,652.83,0.61776238]
[1747825364069,0.2663758,654.07,652.73,0.30610088]
[1747825364264,0.2663758,654.07,652.74,0.92396472]
[1747825364460,0.2663758,654.07,652.75,0.61777689]
[1747825364760,0.2663758,654.07,652.76,0.61777689]
[1747825364964,0.2663758,654.07,652.77,0.61777689]
[1747825365263,0.2663758,654.07,652.78,0.61777689]
[1747825365463,0.2663758,654.07,652.79,0.61777689]
[1747825365661,0.776,654.25,652.8,0.61742508]
[1747825365662,3.82008945,654.04,652.8,0.61742508]
[1747825365865,3.82008945,654.04,652.81,0.61742508]
[1747825366066,3.82008945,654.04,652.77,0.30610088]
[1747825366263,3.82008945,654.04,652.78,0.61742879]
[1747825366466,3.82008945,654.04,652.79,0.61742879]
[1747825366668,3.82008945,654.04,652.8,0.61742879]
[1747825366869,0.26637376,654.03,652.77,0.30610088]
[1747825367069,0.26637376,654.03,652.78,0.6173056]
[1747825367369,0.26637376,654.03,652.77,0.30610088]
[1747825367668,0.26637376,654.03,652.79,0.30610088]
[1747825367864,0.26637376,654.03,652.8,0.61720131]
[1747825368068,0.26637376,654.03,652.79,0.30610088]
[1747825368771,3.82008945,654.04,652.79,0.30610088]
[1747825369069,3.82008945,654.04,652.62,0.30610088]
[1747825369269,3.82008945,654.04,652.63,2.08823957]
[1747825369471,3.82008945,654.04,652.64,0.92315483]
[1747825369769,0.26638905,654.03,652.65,2.08823957]
[1747825369963,1.26338905,654.03,652.66,0.92315483]
[1747825370168,1.26338905,654.03,652.67,2.08823957]
[1747825370363,1.26338905,654.03,652.68,0.92315483]
[1747825370568,1.26338905,654.03,652.69,2.08823957]
[1747825370864,1.26338905,654.03,652.7,0.61678052]
[1747825371073,1.26338905,654.03,652.71,0.92296896]
[1747825371266,1.26338905,654.03,652.72,1.78186526]
[1747825371464,1.26338905,654.03,652.73,0.61678052]
[1747825371669,1.26338905,654.03,652.74,0.61678052]
[1747825371963,1.26338905,654.03,652.75,0.61678052]
[1747825372269,1.26338905,654.03,652.76,0.61678052]
[1747825372464,1.26338905,654.03,652.77,0.61678052]
[1747825372767,1.26338905,654.03,652.78,0.9228814]
[1747825372964,1.26338905,654.03,652.78,0.30610088]
[1747825373769,1.26338905,654.03,652.57,0.60807815]
[1747825374069,1.26338905,654.03,652.58,0.9224723]
[1747825374365,1.26338905,654.03,652.59,0.9224723]
[1747825374569,1.26338905,654.03,652.6,0.92240657]
[1747825374768,1.26338905,654.03,652.61,0.92240657]
[1747825374969,1.26338905,654.03,652.62,2.08638415]
[1747825375164,1.26338905,654.03,652.63,0.92240657]
[1747825375363,1.26338905,654.03,652.64,0.92240657]
[1747825375567,1.26338905,654.03,652.65,2.08638415]
[1747825375764,1.26338905,654.03,652.66,0.92240657]
[1747825375969,1.26338905,654.03,652.67,2.08638415]
[1747825376166,1.26338905,654.03,652.68,0.92240657]
[1747825376472,1.26338905,654.03,652.69,2.08638432]
[1747825376673,1.26338905,654.03,652.7,0.61621858]
[1747825376873,1.26338905,654.03,652.71,0.61621858]
[1747825377067,1.26338905,654.03,652.72,1.78019616]
[1747825377370,1.26338905,654.03,652.73,0.61621858]
[1747825377571,1.26338905,654.03,652.74,0.61621858]
[1747825377767,1.26338905,654.03,652.75,0.61621858]
[1747825377974,1.26338905,654.03,652.76,0.61621858]
[1747825378174,1.26338905,654.03,652.77,0.61605798]
[1747825378367,1.26338905,654.03,652.75,0.30610088]
[1747825378568,1.26338905,654.03,652.76,0.61601363]
[1747825378773,1.26338905,654.03,652.77,0.61601363]
[1747825379068,1.26338905,654.03,652.75,0.30610088]
[1747825379273,1.26338905,654.03,652.76,0.61599149]
[1747825379476,1.26338905,654.03,652.75,0.30610088]
[1747825379671,1.26338905,654.03,652.76,0.61597382]
[1747825379872,1.26338905,654.03,652.58,0.30610088]
[1747825380073,1.26338905,654.03,652.59,0.92216495]
[1747825380273,1.26338905,654.03,652.6,0.92216495]
[1747825380475,1.26338905,654.03,652.61,0.92216495]
[1747825380675,1.26338905,654.03,652.62,0.92216495]
[1747825380878,1.26338905,654.03,652.63,2.08571621]
[1747825381075,1.26338905,654.03,652.64,0.92216495]
[1747825381378,1.26338905,654.03,652.65,1.22831484]
[1747825381674,1.26338905,654.03,652.66,2.08576522]
[1747825381878,1.26338905,654.03,652.67,2.08576522]
[1747825382077,1.26338905,654.03,652.68,0.92221396]
[1747825382277,1.26338905,654.03,652.69,1.77957691]
[1747825382573,1.26338905,654.03,652.7,1.77957691]
[1747825382778,1.26338905,654.03,652.71,0.61602705]
[1747825383078,1.26338905,654.03,652.72,0.61602705]
[1747825383278,1.26338905,654.03,652.73,0.61602705]
[1747825383476,1.26338905,654.03,652.74,0.61602705]
[1747825383680,0.997,654.03,652.75,0.61602705]
[1747825383876,0.997,654.03,652.76,0.92212793]
[1747825384074,0.997,654.03,652.76,0.30610088]
[1747825384780,0.26641046,654.02,652.76,0.30610088]
[1747825385580,0.26641046,654.02,652.54,0.30610088]
[1747825385781,0.26641046,654.02,652.55,0.92221454]
[1747825385981,0.26641046,654.02,652.56,0.92221454]
[1747825386174,0.26641046,654.02,652.57,0.92221454]
[1747825386375,0.26641046,654.02,652.58,2.08581911]
[1747825386575,0.26641046,654.02,652.59,2.08581911]
[1747825386778,0.26641046,654.02,652.6,0.92221501]
[1747825386975,0.26641046,654.02,652.61,0.92221501]
[1747825387182,0.26641046,654.02,652.62,0.92221501]
[1747825387381,0.26641046,654.02,652.63,0.92221501]
[1747825387579,0.26641046,654.02,652.64,0.92221501]
[1747825387779,0.26641046,654.02,652.65,0.61601367]
[1747825387977,0.26641046,654.02,652.66,0.61606761]
[1747825388282,0.26641046,654.02,652.67,0.61606761]
[1747825388476,0.26641046,654.02,652.6,0.30610088]
[1747825388676,0.26641046,654.02,652.61,0.61597342]
[1747825388882,0.26641046,654.02,652.68,0.30610088]
[1747825390582,0.26641046,654.02,652.46,0.30610088]
[1747825390782,0.26641046,654.02,652.47,0.92209035]
[1747825391081,0.26641046,654.02,652.48,2.08534022]
[1747825391282,0.26641046,654.02,652.49,0.92209035]
[1747825391475,0.26641046,654.02,652.5,0.9220899]
[1747825391676,0.26641046,654.02,652.51,2.08533977]
[1747825391876,0.26641046,654.02,652.52,0.9220899]
[1747825392181,0.26641046,654.02,652.51,0.30610088]
[1747825392582,0.997,654.03,652.51,0.30610088]
[1747825392877,0.26642678,654.01,652.52,2.0852092]
[1747825393079,0.26642678,654.01,652.53,0.92204453]
[1747825393285,0.26642678,654.01,652.54,0.92204498]
[1747825393478,0.26642678,654.01,652.55,2.08517415]
[1747825393678,0.26642678,654.01,652.56,0.92200948]
[1747825393978,0.26642678,654.01,652.57,2.08517415]
[1747825394183,0.26642678,654.01,652.58,0.92200948]
[1747825394379,0.26642678,654.01,652.59,1.77894505]
[1747825394583,0.26642678,654.01,652.6,0.61578038]
[1747825394783,0.26642678,654.01,652.61,0.61578038]
[1747825394980,0.26642678,654.01,652.62,0.61578038]
[1747825395184,0.26642678,654.01,652.63,0.61578038]
[1747825395484,0.26642678,654.01,652.64,0.61575273]
[1747825395682,4.81708945,654.03,652.65,0.61575273]
[1747825395882,4.81708945,654.03,652.58,0.30610088]
[1747825396083,0.2664074,654.0,652.59,1.77875637]
[1747825396284,0.2664074,654.0,652.6,0.61572196]
[1747825396584,0.2664074,654.0,652.61,0.92182284]
[1747825396785,0.2664074,654.0,652.62,0.61572196]
[1747825396979,0.2664074,654.0,652.63,0.61572196]
[1747825397286,0.2664074,654.0,652.64,0.61569024]
[1747825397486,0.2664074,654.0,652.65,0.61569024]
[1747825397683,0.2664074,654.0,652.61,0.30610088]
[1747825397880,0.2664074,654.0,652.66,0.30610088]
[1747825398589,3.82008945,654.03,652.66,0.30610088]
[1747825398889,0.26642882,653.99,652.44,0.30610088]
[1747825399088,0.26642882,653.99,652.45,0.92190761]
[1747825399287,0.26642882,653.99,652.46,0.92190761]
[1747825399484,0.26642882,653.99,652.47,0.92190761]
[1747825399694,0.26642882,653.99,652.48,2.08485853]
[1747825399887,0.26642882,653.99,652.49,0.92190761]
[1747825400084,0.26642882,653.99,652.5,0.92190761]
[1747825400288,0.26642882,653.99,652.51,2.08485853]
[1747825400483,0.26642882,653.99,652.52,0.92190761]
[1747825400683,0.26642882,653.99,652.53,0.9218541]
[1747825400886,0.26642882,653.99,652.54,0.9218541]
[1747825401085,0.26642882,653.99,652.55,1.22795498]
[1747825401290,0.26642882,653.99,652.56,0.9218541]
[1747825401491,0.728,653.98,652.57,0.9218541]
[1747825401689,0.728,653.98,652.58,0.9218541]
[1747825401888,0.26641964,653.97,652.59,1.77857631]
[1747825402089,0.26641964,653.97,652.6,0.61562539]
[1747825402291,0.26641964,653.97,652.61,1.16295092]
[1747825402490,0.26641964,653.97,652.62,0.61562539]
[1747825402994,0.26641964,653.97,652.63,0.61562539]
[1747825403188,0.26641964,653.97,652.64,0.61562539]
[1747825403388,0.26641964,653.97,652.65,0.61562539]
[1747825403693,0.26641964,653.97,652.63,0.30610088]
[1747825404394,0.26641964,653.97,652.64,0.61573699]
[1747825404594,0.728,653.98,652.65,0.61573699]
[1747825404794,0.2664125,653.96,652.66,0.61573404]
[1747825404994,0.2664125,653.96,652.63,0.30610088]
[1747825405187,0.2664125,653.96,652.64,0.61588713]
[1747825405392,0.2664125,653.96,652.46,0.30610088]
[1747825405595,0.2664125,653.96,652.47,0.92238234]
[1747825405793,0.2664125,653.96,652.48,2.08700867]
[1747825406092,0.2664125,653.96,652.49,0.92238234]
[1747825406289,0.2664125,653.96,652.5,2.08700867]
[1747825406489,0.2664125,653.96,652.51,0.92238234]
[1747825406789,0.2664125,653.96,652.52,0.92238234]
[1747825406993,0.2664125,653.96,652.53,0.61613059]
[1747825407196,0.2664125,653.96,652.54,1.78075692]
[1747825407393,0.2664125,653.96,652.55,0.61613059]
[1747825407595,0.728,653.98,652.55,0.61613059]
[1747825407894,0.26642984,653.95,652.55,0.61613059]
[1747825408095,0.26642984,653.95,652.56,1.78163448]
[1747825408294,0.26642984,653.95,652.57,0.61613059]
[1747825408794,0.26642984,653.95,652.53,0.30610088]
[1747825408795,0.26642984,653.95,652.58,0.61613059]
[1747825409007,0.26642984,653.95,652.59,0.30610088]
[1747825410591,0.728,653.98,652.59,0.30610088]
[1747825410796,0.728,653.98,652.37,0.30610088]
[1747825410997,0.728,653.98,652.38,0.92249262]
[1747825411198,0.728,653.98,652.39,0.92249262]
[1747825411494,0.728,653.98,652.37,0.30610088]
[1747825411693,0.728,653.98,652.38,0.61623236]
[1747825411893,0.26645024,653.97,652.39,0.61623236]
[1747825412098,0.26645024,653.97,652.4,0.61623236]
[1747825412395,0.26645024,653.97,652.41,0.61623236]
[1747825412600,0.26645024,653.97,652.42,0.61629075]
[1747825412898,0.26645024,653.97,652.43,0.61629075]
[1747825413094,0.26645024,653.97,652.44,0.61629021]
[1747825413296,0.26645024,653.97,652.45,0.616455]
[1747825413495,0.728,653.98,652.4,0.30610088]
[1747825413801,0.26644412,653.96,652.41,2.08869516]
[1747825414000,0.26644412,653.96,652.42,0.92274262]
[1747825414300,0.26644412,653.96,652.43,2.08869516]
[1747825414503,0.26644412,653.96,652.44,0.92274262]
[1747825414695,0.26644412,653.96,652.45,2.08869516]
[1747825414898,0.26644412,653.96,652.46,0.92274262]
[1747825415098,0.26644412,653.96,652.47,0.92274262]
[1747825415299,0.26644412,653.96,652.48,2.08869516]
[1747825415598,0.26644412,653.96,652.49,2.08869516]
[1747825415799,0.26644412,653.96,652.5,0.92274262]
[1747825416102,0.26644412,653.96,652.51,1.78242701]
[1747825416301,0.26644412,653.96,652.52,0.61647447]
[1747825416602,0.728,653.98,652.52,0.61647447]
[1747825416802,0.728,653.98,652.53,1.78262209]
[1747825417003,0.26643698,653.97,652.54,0.61666955]
[1747825417201,0.26643698,653.97,652.54,2.08872297]
[1747825417402,0.26643698,653.97,652.55,0.61666955]
[1747825417702,0.26643698,653.97,652.56,0.61666955]
[1747825417904,0.26643698,653.97,652.57,0.61666955]
[1747825418100,0.26643698,653.97,652.58,0.30610088]
[1747825419406,0.26643698,653.97,652.39,0.60807815]
[1747825419601,0.728,653.98,652.4,2.08975037]
[1747825419806,0.26645432,653.96,652.41,0.92311448]
[1747825420106,0.26645432,653.96,652.42,2.08975037]
[1747825420308,0.26645432,653.96,652.43,0.92318]
[1747825420508,0.26645432,653.96,652.44,0.92318]
[1747825420710,0.26645432,653.96,652.45,2.08923267]
[1747825420904,0.26645432,653.96,652.46,0.92259678]
[1747825421207,0.26645432,653.96,652.47,0.92259678]
[1747825421408,0.26645432,653.96,652.48,2.08923267]
[1747825421708,0.26645432,653.96,652.49,2.08923267]
[1747825422010,0.26645432,653.96,652.5,0.6163385]
[1747825422211,0.26645432,653.96,652.51,1.78297439]
[1747825422407,3.82008945,653.73,652.52,0.6163385]
[1747825422611,3.82008945,653.73,652.53,0.6163385]
[1747825422811,3.82008945,653.73,652.54,0.6163385]
[1747825423009,3.82008945,653.73,652.55,0.6163385]
[1747825423207,3.82008945,653.73,652.56,0.6163385]
[1747825423407,3.82008945,653.73,652.49,0.30610088]
[1747825423606,3.82008945,653.73,652.5,0.61634325]
[1747825423807,3.82008945,653.73,652.51,0.61637681]
[1747825423808,0.26649207,653.72,652.51,0.61637681]
[1747825424010,0.26649207,653.72,652.52,0.61637681]
[1747825424309,0.26649207,653.72,652.53,0.61637681]
[1747825424510,0.26649207,653.72,652.54,0.61637681]
[1747825424706,0.26649207,653.72,652.55,0.61637681]
[1747825424911,0.26649207,653.72,652.56,0.61637681]
[1747825425207,0.26649207,653.72,652.4,0.30610088]
[1747825425410,0.26649207,653.72,652.41,0.92267959]
[1747825425713,3.82008945,653.73,652.42,0.92265489]
[1747825426009,3.82008945,653.73,652.43,2.09025617]
[1747825426214,3.82008945,653.73,652.44,0.92265489]
[1747825426413,3.82008945,653.73,652.45,2.09025617]
[1747825426615,3.82008945,653.73,652.46,1.22875577]
[1747825426815,0.26648697,653.72,652.47,0.92265489]
[1747825427015,0.26648697,653.72,652.48,0.92265489]
[1747825427216,0.26648697,653.72,652.49,0.92265489]
[1747825427517,0.26648697,653.72,652.5,0.61637601]
[1747825427716,0.26648697,653.72,652.51,0.61637601]
[1747825427917,0.26648697,653.72,652.52,0.61637601]
[1747825428113,0.26648697,653.72,652.53,0.61637601]
[1747825428618,3.82008945,653.73,652.53,0.61637601]
[1747825429218,3.82008945,653.73,652.52,0.30610088]
[1747825429219,1.021,653.72,652.52,0.30610088]
[1747825429419,1.021,653.72,652.53,0.61657988]
[1747825429619,1.021,653.72,652.54,0.30610088]
[1747825429822,0.2664788,653.71,652.54,0.30610088]
[1747825430717,0.2664788,653.71,652.38,0.30610088]
[1747825430922,0.2664788,653.71,652.39,0.9236857]
[1747825431123,0.2664788,653.71,652.4,0.9236857]
[1747825431325,0.2664788,653.71,652.41,0.9236857]
[1747825431524,0.2664788,653.71,652.42,2.09231443]
[1747825431725,1.021,653.72,652.43,0.9236857]
[1747825431925,1.021,653.72,652.44,2.09231443]
[1747825432224,1.021,653.72,652.45,2.09231443]
[1747825432421,1.021,653.72,652.46,2.39841351]
[1747825432626,1.021,653.72,652.47,0.61738865]
[1747825432823,0.26648595,653.71,652.48,0.61738865]
[1747825433020,0.26648595,653.71,652.49,0.61738865]
[1747825433324,0.26648595,653.71,652.5,0.61738865]
[1747825433523,0.26648595,653.71,652.51,0.61738865]
[1747825433724,0.26648595,653.71,652.52,0.61738865]
[1747825433926,0.26648595,653.71,652.53,0.61738865]
[1747825434126,0.26648595,653.71,652.51,0.30610088]
[1747825434320,0.26648595,653.71,652.52,0.61737877]
[1747825434519,1.021,653.72,652.53,0.61737877]
[1747825434723,1.021,653.72,652.51,0.30610088]
[1747825434919,1.021,653.72,652.54,0.30610088]
[1747825435727,0.26649717,653.71,652.54,0.30610088]
[1747825436428,0.26649717,653.71,652.36,0.30610088]
[1747825436625,0.26649717,653.71,652.37,0.92374391]
[1747825436821,0.26649717,653.71,652.38,0.92374391]
[1747825437026,0.26649717,653.71,652.39,2.09279308]
[1747825437227,0.26649717,653.71,652.4,2.09279308]
[1747825437428,0.26649717,653.71,652.41,1.22984479]
[1747825437728,1.021,653.72,652.42,2.09279308]
[1747825438028,1.021,653.72,652.43,0.61735869]
[1747825438221,1.021,653.72,652.44,0.61735869]
[1747825438426,1.021,653.72,652.45,0.61735869]
[1747825438623,1.021,653.72,652.46,0.61735869]
[1747825438825,0.26648799,653.71,652.47,0.61735869]
[1747825439129,0.26648799,653.71,652.48,1.16913217]
[1747825439329,0.26648799,653.71,652.49,0.61735869]
[1747825439930,0.26648799,653.71,652.5,0.61735869]
[1747825440228,0.26648799,653.71,652.51,0.92345957]
[1747825440432,0.26648799,653.71,652.52,0.61735869]
[1747825441627,0.26648799,653.71,652.53,0.30610088]
[1747825441823,0.26648799,653.71,652.54,0.61735869]
[1747825442028,0.26648799,653.71,652.55,0.61735869]
[1747825442325,0.26648799,653.71,652.56,0.6170337]
[1747825442626,3.82008945,653.82,652.57,0.92326093]
[1747825442832,3.82008945,653.82,652.58,2.091318]
[1747825443131,0.26643698,653.76,652.59,0.92326093]
[1747825443432,3.82008945,653.82,652.6,0.92326093]
[1747825443630,0.81,653.75,652.61,2.091318]
[1747825443832,0.81,653.75,652.62,0.92326093]
[1747825444128,0.81,653.75,652.63,2.091318]
[1747825444332,0.81,653.75,652.64,0.92326093]
[1747825444625,0.81,653.75,652.65,2.091318]
[1747825444832,0.81,653.75,652.66,0.92326093]
[1747825445027,0.81,653.75,652.67,0.92326093]
[1747825445233,0.81,653.75,652.68,2.09119165]
[1747825445446,0.81,653.75,652.69,0.6170337]
[1747825445734,0.81,653.75,652.7,1.78509077]
[1747825445936,0.81,653.75,652.71,0.61689881]
[1747825446131,0.81,653.75,652.72,0.61689881]
[1747825446329,0.81,653.75,652.68,0.30610088]
[1747825446330,0.81,653.75,652.73,0.61689881]
[1747825446532,0.81,653.75,652.74,0.61689881]
[1747825446832,0.81,653.75,652.75,0.61689881]
[1747825447032,0.81,653.75,652.76,0.61689881]
[1747825447236,0.81,653.75,652.77,0.61689881]
[1747825447437,0.81,653.75,652.73,0.30610088]
[1747825447639,0.81,653.75,652.74,0.61680703]
[1747825447837,0.81,653.75,652.75,0.61680703]
[1747825448034,0.81,653.75,652.76,0.61680703]
[1747825448339,0.81,653.75,652.77,0.61680703]
[1747825448540,0.81,653.75,652.78,0.30610088]
[1747825450537,0.81,653.75,652.56,0.30610088]
[1747825450740,0.81,653.75,652.57,0.9228111]
[1747825450941,0.81,653.75,652.58,2.08717315]
[1747825451141,0.81,653.75,652.59,0.92281119]
[1747825451338,0.81,653.75,652.6,0.92281119]
[1747825451537,0.81,653.75,652.61,2.08717324]
[1747825451736,0.81,653.75,652.62,1.22891207]
[1747825452039,0.81,653.75,652.63,2.08717324]
[1747825452239,0.81,653.75,652.64,2.08717324]
[1747825452437,0.81,653.75,652.65,0.92281119]
[1747825452639,0.81,653.75,652.66,2.08717324]
[1747825452838,0.81,653.75,652.67,2.08708186]
[1747825453037,0.81,653.75,652.68,0.61653072]
[1747825453341,0.81,653.75,652.69,1.16436205]
[1747825453541,0.81,653.75,652.7,0.61653072]
[1747825453741,0.81,653.75,652.71,0.61653072]
[1747825454042,0.81,653.75,652.72,0.61653072]
[1747825454340,0.81,653.75,652.73,0.61653072]
[1747825454546,0.81,653.75,652.74,0.61653072]
[1747825454841,0.81,653.75,652.75,0.61653072]
[1747825455043,0.81,653.75,652.74,0.30610088]
[1747825455242,0.81,653.75,652.75,0.61642284]
[1747825455443,0.81,653.75,652.74,0.30610088]
[1747825456045,0.81,653.75,652.55,0.30610088]
[1747825456239,0.81,653.75,652.56,0.9225856]
[1747825456442,0.81,653.75,652.57,0.9225856]
[1747825456644,0.81,653.75,652.58,0.9225856]
[1747825456844,0.81,653.75,652.59,0.9225856]
[1747825457045,0.81,653.75,652.6,2.08642446]
[1747825457345,0.81,653.75,652.61,0.9225856]
[1747825457540,0.81,653.75,652.62,0.9225856]
[1747825459641,0.81,653.75,652.71,0.61640827]
[1747825459844,0.81,653.75,652.72,0.61638554]
[1747825460044,0.81,653.75,652.73,0.61638554]
[1747825460245,0.81,653.75,652.74,0.61638554]
[1747825460444,0.81,653.75,652.75,0.61638554]
[1747825460643,0.81,653.75,652.69,0.30610088]
[1747825460844,0.26642678,653.84,652.7,0.61635742]
[1747825461040,0.26642678,653.84,652.71,0.61635742]
[1747825461240,0.26642678,653.84,652.72,0.61635742]
[1747825461445,0.26642678,653.84,652.73,0.61635742]
[1747825461645,3.82008945,654.17,652.74,0.61627762]
[1747825461947,0.26636764,653.84,652.75,0.61627762]
[1747825462142,3.82008945,654.17,652.71,0.30610088]
[1747825462344,3.82008945,654.17,652.72,0.6162702]
[1747825462544,3.82008945,654.17,652.76,0.30610088]
[1747825462946,0.26636866,654.16,652.77,0.61617793]
[1747825463141,0.26636866,654.16,652.78,0.61617793]
[1747825463343,0.26636866,654.16,652.79,2.08482824]
[1747825463547,0.26636866,654.16,652.8,1.22806347]
[1747825463744,0.26636866,654.16,652.81,0.92196259]
[1747825463948,0.26636866,654.16,652.82,0.92196259]
[1747825464150,0.882,654.15,652.83,2.08482824]
[1747825464346,0.882,654.15,652.84,0.61584405]
[1747825464545,0.882,654.15,652.85,0.61584405]
[1747825464843,0.882,654.15,652.86,0.61584405]
[1747825465043,0.882,654.15,652.87,0.61532192]
[1747825465247,0.882,654.15,652.88,0.61532192]
[1747825465447,0.882,654.15,652.8,0.30610088]